Cogmind - Beta 16 @@@ ROGUE MODE // 2026.02.03 @ 18:49:04 Player: eb Result: Destroyed by 4L-MZ4(R) with Subdweller Laser Performance ------------- Evolutions (0) 0 Regions Visited (2) 400 Robots Destroyed (14) 70 Value Destroyed (394) 394 Prototype IDs (2) 40 Alien Tech Used (0) 0 Bonus (0) 0 TOTAL SCORE: 904 Bonus ------- None Cogmind --------- Core Integrity 0/250 Matter 282/300 Energy 250/250 System Corruption 0% Temperature Cool (13) Movement Flying (120) Ox1 Location -10/Subcaves Parts ------- > --- POWER (1) -------- Ion Engine > --- PROPULSION (2) --- Flight Unit > --- UTILITY (2) ------ (None) > --- WEAPON (2) ------- (None) > --- INVENTORY (5) ---- Flight Unit Flight Unit Riot Gun Peak State ------------ > --- POWER ------------ Ion Engine > --- PROPULSION ------- Light Treads Light Treads > --- UTILITY ---------- Small Storage Unit Sensor Array > --- WEAPON ----------- Assault Rifle Assault Rifle > --- INVENTORY -------- Aluminum Leg Aluminum Leg Improved Heat Sink Medium Matter Pod Sensor Array Targeting Computer EM Pulse Gun Light Assault Rifle [Rating: 8] Favorites ----------- Power Ion Engine Engine Ion Engine Propulsion Light Treads Treads Light Treads Leg Aluminum Leg Flight Unit Flight Unit Utility Small Storage Unit Device Sensor Array Storage Small Storage Unit Processor Signal Interpreter Protection Scrap Shield Weapon Assault Rifle Energy Gun EM Pulse Gun Ballistic Gun Assault Rifle Build | -11 -10 -10 ------- Run | Yrd Mat Sub Slots Evolved . | . . . Power . | . . . Propulsion . | . . . Utility . | . . . Weapon . | . . . Parts Attached 22 | 6 10 6 Power 4 | 1 2 1 Engine 4 | 1 2 1 Core . | . . . Reactor . | . . . Propulsion 8 | 2 4 2 Treads 2 | 2 . . Leg 4 | . 4 . Wheel . | . . . Hover . | . . . Flight 2 | . . 2 Utility 6 | 1 2 3 Device 2 | . 1 1 Storage 1 | 1 . . Processor 2 | . 1 1 Hackware . | . . . Protection 1 | . . 1 Artifact . | . . . Weapon 4 | 2 2 . Energy Gun 1 | . 1 . Energy Cannon . | . . . Ballistic Gun 3 | 2 1 . Ballistic Cannon . | . . . Launcher . | . . . Special Weapon . | . . . Impact Weapon . | . . . Slashing Weapon . | . . . Piercing Weapon . | . . . Special Melee Weapon . | . . . Unidentified Prototypes . | . . . Parts Lost 3 | . . 3 Power . | . . . Propulsion 1 | . . 1 Utility 1 | . . 1 Weapon 1 | . . 1 Highest Loss Streak 2 | . . 2 To Critical Strikes . | . . . Average Backups 6 | 1 7 4 Power . | . . . Propulsion 2 | . 2 2 Utility 2 | . 3 1 Weapon 1 | . 1 1 Tool/Special . | . . . Unused Backups 13 | . 8 5 Power 1 | . 1 . Propulsion 5 | . 3 2 Utility 4 | . 3 1 Weapon 3 | . 1 2 Tool/Special . | . . . Average Slot Usage (%) 94 | . 99 82 Engine 14 | . 14 14 Treads 14 | . 20 . Leg 5 | . 7 . Flight 7 | . . 27 Device 10 | . 8 13 Storage 10 | . 14 . Processor 7 | . 4 13 Energy Gun 4 | . 1 11 Ballistic Gun 18 | . 26 . Peak Build Rating 8 | 6 8 7 Average Rating 6 | 4 7 5 On Entrance 4 | . 6 7 Avg Prop Armor Cover (%) . | . . . Naked Turns . | . . . Heaviest Build 23 | 13 15 23 Greatest Support 40 | 40 40 8 Greatest Overweight (x) 2 | . 1 2 Average Overweight (x) . | . . . Largest Inventory Capacity 8 | 8 8 8 Average Capacity 7 | 7 8 5 Most Carried 8 | 4 8 8 Average Carried 6 | 2 7 4 Final Capacity 8 | 8 8 5 Final Carried 8 | 4 8 3 Class Distribution -------------------- 100% | Mutant Dominant Class ---------------- Mutant | -10/Materials Mutant | -10/Subcaves Resources | -11 -10 -10 ----------- Run | Yrd Mat Sub Matter Collected 763 | 206 503 54 Remotely . | . . . Salvage Created 487 | . 487 . Parts 33 | . 33 . Haulers Intercepted . | . . . Recyclers Shooed 2 | . 2 . Parts Field Recycled . | . . . Retrieved Matter . | . . . Parts Self-Destructed 7 | . . 7 Prevented . | . . . Parts Restored . | . . . Kills | -11 -10 -10 ------- Run | Yrd Mat Sub Combat Hostiles Destroyed 12 | . 12 . Guns 12 | . 12 . Classes Destroyed 4 | . 4 . Operator 1 | . 1 . Watcher 1 | . 1 . Swarmer 3 | . 3 . Grunt 9 | . 9 . Best Kill Streak 4 | . 4 . Combat Bots Only 3 | . 3 . Max Kills in Single Turn 1 | . 1 . Gunslinging . | . . . Exploded . | . . . Melee . | . . . Uniques/NPCs Destroyed . | . . . Combat | -11 -10 -10 -------- Run | Yrd Mat Sub Hostile Shots Fired 104 | . 78 26 Missed 33 | . 23 10 Hits 71 | . 55 16 Projectile 71 | . 55 16 Critical Strikes 3 | . 2 1 Damage Taken 1058 | . 638 420 Core 259 | . 162 97 Absorbed by Shields . | . . . Core Remaining (%) 100 | 100 . . Volleys Fired 47 | . 47 . Largest 2 | . 2 . Hottest 40 | . 40 . Shots Fired 94 | . 94 . Gun 94 | . 94 . Cannon . | . . . Launcher . | . . . Special . | . . . Kinetic 94 | . 94 . Thermal . | . . . Explosive . | . . . Electromagnetic . | . . . Robot Hit Streak 17 | . 17 . Robot Miss Streak 4 | . 4 . Penetration Max . | . . . Secondary Targets . | . . . Shots Hit Robots 63 | . 63 . Core Hits 24 | . 24 . Critical Kills . | . . . Critical Parts Destroyed 1 | . 1 . Critical Strikes 1 | . 1 . Destroy 1 | . 1 . Melee Attacks . | . . . Impact . | . . . Slashing . | . . . Piercing . | . . . Sneak Attacks . | . . . Combat Hostiles . | . . . Follow-up Attacks . | . . . Damage Inflicted 843 | . 843 . Guns 843 | . 843 . Cannons . | . . . Explosions . | . . . Melee . | . . . Ramming . | . . . Kinetic 843 | . 843 . Thermal . | . . . Explosive . | . . . Electromagnetic . | . . . Impact . | . . . Slashing . | . . . Piercing . | . . . Highest Corruption . | . . . Average Corruption . | . . . Corruption Purged . | . . . Corruption Blocked . | . . . Overload Shots . | . . . Overflow Damage . | . . . Projectiles . | . . . Explosions . | . . . Melee . | . . . Knockbacks . | . . . Impact . | . . . Kinetic . | . . . Secondary . | . . . Self-Inflicted Damage . | . . . Shots . | . . . Rammed . | . . . Targets Rammed . | . . . Kicked . | . . . Crushed . | . . . Highest Temperature 20 | . 20 . Average Temperature 6 | . 6 . Received Heat Transfer 414 | . 318 96 Siege Activations . | . . . Martial Activations . | . . . Shielding Activations . | . . . Robots Disrupted . | . . . Combat Hostiles . | . . . Robots Corrupted . | . . . Combat Hostiles . | . . . Parts Fried . | . . . Impact Corruptions . | . . . Robots Melted . | . . . Combat Hostiles . | . . . Parts Melted . | . . . Heat Transferred . | . . . Parts Sabotaged . | . . . Parts Stolen . | . . . Parts Stripped . | . . . Power Chain Reactions . | . . . Alert | -11 -10 -10 ------- Run | Yrd Mat Sub Maximum Alert Level 1 | . 1 . Low Security (%) 96 | 100 95 . Level 1 3 | . 4 . Level 2 . | . . . Level 3 . | . . . Level 4 . | . . . Level 5 . | . . . High Security . | . . . Max Security . | . . . Peak Influence 217 | . 217 . Initial . | . . . Average 48 | . 52 . Influence Increases 410 | . 410 . Destroy 0b10 Robot/C 240 | . 240 . Destroy 0b10 Robot/NC 10 | . 10 . Destroy Leader 42 | . 42 . Successful Hack 10 | . 10 . Destroy Structure 3 | . 3 . Lose Combat Pursuer 105 | . 105 . Influence Decreases 410 | . 241 169 Entered New Map 82 | . . 82 Time Decay 328 | . 241 87 Squads Dispatched 1 | . 1 . Investigation 1 | . 1 . Extermination . | . . . Reinforcement . | . . . Assault . | . . . Garrison . | . . . Intercept . | . . . Searches Triggered . | . . . Construction Impeded . | . . . Haulers Reinforced . | . . . Active Scanning Responses . | . . . Cargo Convoy Interrupts . | . . . Stealth | -11 -10 -10 --------- Run | Yrd Mat Sub Distress Signals . | . . . Communications Jammed . | . . . Distress Signals . | . . . Times Spotted 33 | . 23 10 Peak Tracking Total 4 | . 4 4 Tactical Retreats 7 | . 4 3 Traps | -11 -10 -10 ------- Run | Yrd Mat Sub Traps Triggered 3 | . 1 2 Indirectly . | . . . Trap Hack Attempts . | . . . Triggered . | . . . Disarmed . | . . . Reprogrammed . | . . . Reused . | . . . Traps Extracted . | . . . Installed . | . . . Triggered . | . . . Machines | -11 -10 -10 ---------- Run | Yrd Mat Sub Machines Disabled . | . . . Max in Single Turn . | . . . Machines Repaired . | . . . Machines Dismantled . | . . . Machines Sabotaged . | . . . Overloaded Fab Kills . | . . . Hacking | -11 -10 -10 --------- Run | Yrd Mat Sub Machines Accessed 5 | . 5 . Terminals 5 | . 5 . Fabricators . | . . . Repair Stations . | . . . Recycling Units . | . . . Scanalyzers . | . . . Garrison Access . | . . . Total Hacks 9 | . 9 . Successful 3 | . 3 . Failed 6 | . 6 . Catastrophic 3 | . 3 . Database Lockouts . | . . . Manual 3 | . 3 . Terminals 9 | . 9 . Fabricators . | . . . Repair Stations . | . . . Recycling Units . | . . . Scanalyzers . | . . . Garrison Access . | . . . Terminal Hacks 3 | . 3 . Record 1 | . 1 . Prototype ID Bank 1 | . 1 . Hauler Manifests 1 | . 1 . Fabricator Hacks . | . . . Repair Station Hacks . | . . . Recycling Unit Hacks . | . . . Scanalyzer . | . . . Garrison Access Hacks . | . . . Unauthorized Hacks . | . . . Terminals . | . . . Fabricators . | . . . Repair Stations . | . . . Recycling Units . | . . . Scanalyzers . | . . . Garrison Access . | . . . Data Cores Recovered 1 | . 1 . Used 1 | . 1 . Hacking Detections 4 | . 4 . Full Trace Events . | . . . Feedback Events . | . . . Feedback Blocked . | . . . Robot Schematics Acquired . | . . . Robots Built . | . . . Authchips . | . . . Time . | . . . Total Robot Build Rating . | . . . Part Schematics Acquired . | . . . Parts Built . | . . . Authchips . | . . . Time . | . . . Total Part Build Rating . | . . . Part Studies Acquired . | . . . Parts Repaired . | . . . Time . | . . . Parts Recycled . | . . . Recycled Matter . | . . . Retrieved Matter . | . . . Retrieved Components . | . . . Parts Scanalyzed . | . . . Part Schematics Acquired . | . . . Parts Damaged . | . . . Bothacking | -11 -10 -10 ------------ Run | Yrd Mat Sub Used RIF Installer . | . . . Robots Hacked . | . . . Non-combat . | . . . Combat . | . . . Robot Hacks Applied . | . . . Relay Couplers Released . | . . . Fabnet Peak Effective % . | . . . Robots Rewired . | . . . Allies Hacked . | . . . Hacks Repelled . | . . . Allies | -11 -10 -10 -------- Run | Yrd Mat Sub Total Allies . | . . . Largest Group . | . . . Highest-Rated Group . | . . . Highest-Rated Ally . | . . . Total Orders . | . . . Ally Attacks . | . . . Total Damage . | . . . Kills . | . . . Allies Corrupted . | . . . Allies Melted . | . . . Intel | -11 -10 -10 ------- Run | Yrd Mat Sub Active Infowar (turns) 1100 | . 695 405 Sensors 1100 | . 695 405 Robot Analysis Total . | . . . Derelict Logs Recovered 1 | . . 1 Drone Launches . | . . . Drone Recoveries . | . . . Exploration | -11 -10 -10 ------------- Run | Yrd Mat Sub Turns Passed 1595 | 83 1080 432 Spaces Moved 1318 | 46 557 715 Core 2 | 2 . . Treads 430 | 44 386 . Legs 171 | . 171 . Wheels . | . . . Hover . | . . . Flight 715 | . . 715 Fastest Speed 37 | 50 120 37 Average Speed 89 | 155 147 39 Slowest Speed 197 | 160 190 197 Overloaded Moves . | . . . Propulsion Burnouts . | . . . Robots Hopped . | . . . Potential Cave-ins . | . . . Cave-ins Triggered . | . . . Exploration Rate (%) 33 | 4 64 32 Regions Visited 2 Branch Regions 1 Pre-discovered Areas . | . . . Known Exits Taken . | . . . Unknown Exits Taken 2 | 1 1 . Scrap Searched . | . . . Spaces Dug . | . . . Terrain Destroyed . | . . . Melee . | . . . Projectile . | . . . AOE . | . . . Terrain Rammed . | . . . Walls Destroyed . | . . . Machines Disabled . | . . . Actions | -11 -10 -10 --------- Run | Yrd Mat Sub Total 1649 | 55 726 868 Wait 213 | . 78 135 Move 1316 | 45 556 715 Hop . | . . . Pick Up 25 | 4 18 3 Fast Attach 8 | 6 2 . Attach 3 | . . 3 Detach . | . . . Swap 11 | . 8 3 Drop 26 | . 17 9 Fire 47 | . 47 . Melee . | . . . Ram . | . . . Kick . | . . . Crush . | . . . Escape Stasis . | . . . Rewire . | . . . Trap . | . . . Miscellaneous . | . . . Route ------- -11/Scrapyard -10/Materials (discovered 3 exits: [*Mat x2] / [*Sub]) -10/Subcaves (discovered 1 exit: *Mat) History --------- Turn | Location | Event 45 | -11/Scrapyard | Discovered new exit (range 16) 84 | -11/Scrapyard | Entered Materials 316 | -10/Materials | Build established: Mutant 475 | -10/Materials | Discovered new exit (range 11) 741 | -10/Materials | Discovered new exit (range 3) 964 | -10/Materials | Core integrity fell below 50% 1157 | -10/Materials | Discovered new exit (range 6) 1164 | -10/Materials | Entered Subcaves 1165 | -10/Subcaves | Approached by a straggling Scientist 1178 | -10/Subcaves | Shifting Twisted Machinery released Sub. Power Source 1187 | -10/Subcaves | Discovered new exit (range 13) 1191 | -10/Subcaves | Shifting Twisted Machinery released Riot Gun 1191 | -10/Subcaves | Identified exit to Materials 1502 | -10/Subcaves | Core integrity fell below 20% 1512 | -10/Subcaves | Ambushed by Subdweller buried in earth 1546 | -10/Subcaves | Shifting Twisted Machinery released Scrap Shield 1548 | -10/Subcaves | Shifting Twisted Machinery released Lgt. Humpback 1596 | -10/Subcaves | Destroyed by 4L-MZ4(R) with Subdweller Laser Last Messages --------------- 01506_ Acquired Barrage Gun. 01510_ Triggered Piercing Trap. 01510_ Spikes shoot up from the floor. 01510_ Critical hit (Impale). 01512_ Triggered Shrapnel Trap. 01512_ An expanding cloud of shrapnel blasts out in all directions. 01512_ EM Pulse Gun destroyed. [Achievement: Do Not Disturb] 01513_ 4L-MZ4(R): "THANKSYOU!" 01522_ Acquired derelict log, extracted data. Data stored: Storage entrances (x1). Scrap Shield falls loose from the Twisted Machinery. Lgt. Humpback falls loose from the Twisted Machinery. 01548_ Dropped Barrage Gun. 01549_ Dropped Ion Engine. 01549_ Acquired Scrap Shield. 01574_ Discarded Signal Interpreter. 01574_ Dropped Sensor Array. 01594_ Scrap Shield destroyed. 01596_ Flight Unit destroyed. Map ----- +----------------------------------------------------+ | #????????????? ####? ##?????????????????????? | | ##???????????? # ## #?????????????????????? | | ####?#####??? #?????????????????????? | | ??# #???# ??????????????????????? | | ??# ##??## ! ???????????????????????? | | ??## #?## ! ???????????????????????? | | ???# ##?# ## ???????????????????????? | | ###### ### #? #???????????????????????? | | # ## ## ### ???????????????????????? | | ] #? #??????????????????????? | | ### ???????????????????????? | | # #### #? #???????????????????????? | | ###??## ## ### #???????????????????????? | | ??????### ## ## ##?????###??????????????? | | ????????# ### # [#?????# ##?????????????? | | ????????# ## # # ####### #?????????????? | | ??????# ## #?????????????? | | ###???# # #?????????????? | | # ##?# ### # # #?????????????? | | ### ##?########## #?????????????? | | ## ????????????# ##?????????????? | | #####????????????## ##?????????????? | | ### "" #??????????????# #?????????????? | | ??#" " #??????????????# #?????????????? | | #?#" " #??????????????#RO #?????????????? | | ??# " #?????????????## @ ##?????????????? | | ? "##?????????????# & #??????????????? | | ## "##??????????????# ### #??????????????? | | ?######??????????????## ## ##?????????????? | | ?????????????????????# ### #?????????????? | | ?????????????????????## ### #?????????????? | | ?????????????????????# !# #?????????????? | | ?????????????????????# R ##?????????????? | | ?????????????????????## #?????????????? | | ?????????????????????##R # # ##?????????????? | | ?????????????????????# ### #?????????????? | | ?????????????????????# ## ###?????????????? | | ?????????????????????## ! #???????????????? | | ??????????????????????# % #???????????????? | | ??????????????????????# ##??????????????? | | ??????????????????????###"# #??????????????? | | ???????????????????????##" # ##??????????????? | | ???????????????????????#" ## #???????????????? | | ???????????????????????# ### #???????????????? | | ???????????????????????## ####???????????????? | | ??????????????????????## #??????????????????? | | ??????????????????????# ##??????????????????? | | ??????????????????????# *"####????????????????? | | ??????????????????????##[ """##???????????????? | | ???????????????????????###!" #???????????????? | +----------------------------------------------------+ Best States ------------- Heat Dissipation 25 Energy Generation 10 Energy Capacity 250 Matter Stores 300 Matter Capacity 300 Sight Range 16 Robot Scan Range 14 Terrain Scan Density 10 Armor Coverage 800 Evasion (%) 62 Targeting Accuracy 5 Recoil Reduction 2 Item Schematics ----------------- None Robot Schematics ------------------ None Fabricated ------------ Nothing Repaired ---------- Nothing Studied --------- None Alien Tech Used ----------------- None Achievements -------------- Do Not Disturb Challenges ------------ None Game ------ Seed DamperScatterMiniperforator Manual? 0 Play Time 00:20:18 Cumulative 62.4 hours Start 2026.02.03 @ 18:29:32 End 2026.02.03 @ 18:49:04 Sessions 1 Manual Loads 0 Difficulty Rogue Special Mode None Game No. 42 Rogue 42 Adventurer 0 Explorer 0 Win Type - Total 3 Types 3/0/0/0/0/0/0/0/0/0 Lore% 26 Gallery% 39 Achievement% 28 Wizard Run 0 Options --------- Layout 0 ASCII 0 Keyboard 0 Movement Numpad Keybinds 0 Fullscreen 2 Font 24/Terminus Map View 76x50 Zoom Use 0% Tactical HUD 1 Map Filters NONE Filters NONE Steam 1 RUN: 5febda3f-da2d-41f1-ac94-5e117f81c359